fUSD/lending_fUSD_20240915
["ID","MTS","AMOUNT","RATE_DAILY","PERIOD"]
[338202315,1726384265218,-1216.09,0.00013537,2]
[338202316,1726384265227,-960.23,0.00013537,2]
[338202317,1726384265237,-1340.41,0.00013537,2]
[338202318,1726384265246,-1757.91,0.00013537,2]
[338202319,1726384265267,-500.0,0.00013537,2]
[338202320,1726384265276,-1317.85,0.00013537,2]
[338202321,1726384265285,-500.0,0.00013537,2]
[338202322,1726384265294,-500.0,0.00013537,2]
[338202323,1726384265305,-500.0,0.00013537,2]
[338202324,1726384265314,-534.25,0.00013537,2]
[338202325,1726384265323,-747.33,0.00013537,2]
[338202326,1726384265332,-2268.84,0.00013537,2]
[338202327,1726384265341,-500.0,0.00013537,2]
[338202328,1726384265350,-564.16,0.00013537,2]
[338202329,1726384265359,-1113.0,0.00013537,2]
[338202330,1726384265368,-870.34,0.00013537,2]
[338202331,1726384265378,-534.41,0.00013537,2]
[338202332,1726384265387,-586.59,0.00013537,2]
[338202333,1726384265396,-642.55,0.00013537,2]
[338202334,1726384265405,-500.0,0.00013537,2]
[338202335,1726384265414,-812.35,0.00013537,2]
[338202336,1726384265423,-1375.7,0.00013537,2]
[338202337,1726384265432,-500.0,0.00013537,2]
[338202338,1726384265441,-1395.42,0.00013537,2]
[338202339,1726384265450,-1022.52,0.00013537,2]
[338202340,1726384265462,-2007.03,0.00013537,2]
[338202341,1726384265472,-500.0,0.00013537,2]
[338202342,1726384265481,-2294.68,0.00013537,2]
[338202343,1726384265490,-665.93,0.00013537,2]
[338202344,1726384265505,-2810.04,0.00013537,2]
[338202345,1726384265514,-500.0,0.00013537,2]
[338202346,1726384265689,-1904.58,0.00013537,2]
[338202347,1726384265700,-500.0,0.00013537,2]
[338202348,1726384265710,-500.0,0.00013537,2]
[338202349,1726384265719,-500.0,0.00013537,2]
[338202350,1726384265728,-2272.83,0.00013537,2]
[338202351,1726384265738,-500.0,0.00013537,2]
[338202352,1726384265748,-326.600268,0.00013537,2]
[338202353,1726384265768,-2268.58,0.00013537,2]
[338202354,1726384265778,-500.0,0.00013537,2]
[338202355,1726384265788,-866.72,0.00013537,2]
[338202356,1726384265797,-326.600268,0.00013537,2]
[338202357,1726384265808,-1278.16,0.00013537,2]
[338202358,1726384265818,-500.0,0.00013537,2]
[338202359,1726384265827,-500.0,0.00013537,2]
[338202360,1726384265836,-500.0,0.00013537,2]
[338202361,1726384265846,-1721.43,0.00013537,2]
[338202362,1726384265856,-500.0,0.00013537,2]
[338202363,1726384265867,-2026.93,0.00013537,2]
[338202364,1726384265877,-500.0,0.00013538,2]
[338202365,1726384265886,-500.0,0.00013538,2]
[338202366,1726384265896,-500.0,0.00013538,2]
[338202367,1726384265905,-895.86,0.00013538,2]
[338202368,1726384265915,-500.0,0.00013538,2]
[338202369,1726384265924,-500.0,0.00013538,2]
[338202370,1726384265933,-500.0,0.00013538,2]
[338202371,1726384265943,-596.13,0.00013538,2]
[338202372,1726384265953,-500.0,0.00013538,2]
[338202373,1726384265963,-654.53,0.00013538,2]
[338202374,1726384265972,-1105.66,0.00013538,2]
[338202375,1726384265981,-881.18,0.00013538,2]
[338202376,1726384265991,-766.29,0.00013538,2]
[338202377,1726384266002,-604.92,0.00013538,2]
[338202378,1726384266011,-552.88,0.00013538,2]
[338202379,1726384266020,-500.0,0.00013538,2]
[338202380,1726384266030,-718.65,0.00013538,2]
[338202381,1726384266039,-541.98,0.00013538,2]
[338202382,1726384266048,-773.23,0.00013538,2]
[338202383,1726384266057,-500.0,0.00013538,2]
[338202384,1726384266066,-1626.51,0.00013538,2]
[338202385,1726384266076,-1310.19,0.00013538,2]
[338202386,1726384266085,-618.29,0.00013538,2]
[338202387,1726384266095,-1147.44,0.00013538,2]
[338202388,1726384266104,-2060.71,0.00013538,2]
[338202389,1726384266113,-500.0,0.00013538,2]
[338202390,1726384266123,-500.0,0.00013538,2]
[338202391,1726384266132,-500.0,0.00013538,2]
[338202392,1726384266145,-500.0,0.00013538,2]
[338202393,1726384266154,-500.0,0.00013538,2]
[338202394,1726384266163,-676.27,0.00013538,2]
[338202395,1726384266172,-500.0,0.00013538,2]
[338202396,1726384266181,-500.0,0.00013538,2]
[338202397,1726384266192,-675.72,0.00013538,2]
[338202398,1726384266201,-500.0,0.00013538,2]
[338202399,1726384266209,-2400.73,0.00013538,2]
[338202400,1726384266219,-752.95,0.00013538,2]
[338202401,1726384266228,-1094.37,0.00013538,2]
[338202402,1726384266237,-500.0,0.00013538,2]
[338202403,1726384266246,-500.0,0.00013538,2]
[338202404,1726384266258,-500.0,0.00013538,2]
[338202405,1726384266267,-776.87,0.00013538,2]
[338202406,1726384266276,-500.0,0.00013538,2]
[338202407,1726384266285,-2442.77,0.00013538,2]
[338202408,1726384266294,-500.0,0.00013538,2]
[338202409,1726384266303,-500.0,0.00013538,2]
[338202410,1726384266312,-1849.6,0.00013538,2]
[338202411,1726384266321,-500.0,0.00013538,2]
[338202412,1726384266331,-633.12,0.00013538,2]
[338202413,1726384266340,-500.0,0.00013538,2]
[338202414,1726384266349,-583.51,0.00013538,2]
[338202415,1726384266358,-500.0,0.00013538,2]
[338202416,1726384266368,-500.0,0.00013538,2]
[338202417,1726384266377,-1821.92,0.00013538,2]
[338202418,1726384266386,-2664.32,0.00013538,2]
[338202419,1726384266395,-500.0,0.00013538,2]
[338202420,1726384266404,-791.47,0.00013538,2]
[338202421,1726384266413,-2101.0,0.00013538,2]
[338202422,1726384266422,-500.0,0.00013538,2]
[338202423,1726384266431,-1740.81,0.00013538,2]
[338202424,1726384266440,-576.29,0.00013538,2]
[338202425,1726384266449,-1145.55,0.00013538,2]
[338202426,1726384266458,-621.4,0.00013538,2]
[338202427,1726384266467,-560.37,0.00013538,2]
[338202428,1726384266476,-500.0,0.00013538,2]
[338202429,1726384266485,-1902.0,0.00013538,2]
[338202430,1726384266494,-500.0,0.00013538,2]
[338202431,1726384266505,-500.0,0.00013538,2]
[338202432,1726384266514,-729.65,0.00013538,2]
[338202433,1726384266523,-1050.52,0.00013538,2]
[338202434,1726384266531,-816.91,0.00013538,2]
[338202435,1726384266540,-500.0,0.00013538,2]
[338202436,1726384266549,-150.0,0.00013538,2]
[338202437,1726384266558,-500.0,0.00013538,2]
[338202438,1726384266567,-1869.52,0.00013538,2]
[338202439,1726384266576,-963.07,0.00013538,2]
[338202440,1726384266584,-1410.39,0.00013538,2]
[338202441,1726384266594,-500.0,0.00013538,2]
[338202442,1726384266603,-901.38,0.00013538,2]
[338202443,1726384266612,-767.88,0.00013538,2]
[338202444,1726384266621,-500.0,0.00013538,2]
[338202445,1726384266631,-500.0,0.00013538,2]
[338202446,1726384266640,-1158.27,0.00013538,2]
[338202447,1726384266650,-591.0,0.00013538,2]
[338202448,1726384266659,-673.83,0.00013538,2]
[338202449,1726384266668,-752.18,0.00013538,2]
[338202450,1726384266677,-559.69,0.00013538,2]
[338202451,1726384266686,-577.75,0.00013538,2]
[338202452,1726384266695,-1372.2,0.00013538,2]
[338202453,1726384266706,-151.0,0.00013538,2]
[338202454,1726384266715,-1569.17,0.00013538,2]
[338202455,1726384266725,-500.0,0.00013539,2]
[338202456,1726384266734,-2473.08377333,0.0001354,2]
[338202457,1726384266745,-151.0,0.0001354,2]
[338202458,1726384266757,-2078.900847,0.00013545,2]
[338202459,1726384266767,-2499.9621512,0.00013545,2]
[338202460,1726384266776,-7517.3005934,0.00013545,2]
[338202461,1726384266785,-4204.3695106,0.00013554,2]
[338202462,1726384266795,-16898.9948864,0.00013554,2]
[338202463,1726384266804,-23820.5907726,0.00013563,2]
[338202464,1726384266814,-500.0,0.00013573,2]
[338202465,1726384266823,-515.98750707,0.00013593,2]
[338202466,1726384266832,-5489.13,0.000136,6]
[338202467,1726384266841,-766.0,0.000136,2]
[338202468,1726384266851,-226.0,0.000136,2]
[338202469,1726384266860,-359.0,0.000136,2]
[338202470,1726384266869,-892.15,0.00013608,2]
[338202471,1726384266879,-500.0,0.00013608,2]
[338202472,1726384266888,-1327.12,0.00013608,2]
[338202473,1726384266898,-1991.31,0.00013608,2]
[338202474,1726384266907,-647.23442533,0.00013641,2]
[338202475,1726384266917,-1285.85598382,0.00013641,2]
[338202476,1726384266926,-328.35,0.00013683,2]
[338202477,1726384266936,-1368.15,0.00013698,2]
[338202478,1726384266945,-1368.15,0.00013698,2]
[338202479,1726384266955,-1368.15,0.00013698,2]
[338202480,1726384266965,-1000.0,0.00013698,2]
[338202481,1726384266975,-1000.0,0.00013698,2]
[338202482,1726384266984,-177.82959508,0.00013698,2]
[338202483,1726384266994,-2751.0,0.00013699,2]
[338202484,1726384267005,-500.0,0.00013699,2]
[338202485,1726384267014,-5216.64,0.00013699,2]
[338202486,1726384267023,-200.0,0.00013699,2]
[338202487,1726384267033,-151.0,0.00013699,2]
[338202488,1726384267043,-193.328936,0.00013699,2]
[338202489,1726384267053,-5538.68,0.000137,2]
[338202490,1726384267062,-5538.68,0.000137,2]
[338202491,1726384267072,-5538.68,0.000137,2]
[338202492,1726384267081,-5538.68,0.000137,2]
[338202493,1726384267090,-5538.68,0.000137,2]
[338202494,1726384267099,-152.0,0.00013705,3]
[338202495,1726384267109,-2612.13,0.00013708,2]
[338202496,1726384267119,-2142.44,0.00013708,2]
[338202497,1726384267129,-2259.49,0.00013708,2]
[338202498,1726384267143,-3198.65,0.00013708,2]
[338202499,1726384267153,-513.55,0.00013708,2]
[338202500,1726384267162,-1010.42,0.00013708,2]
[338202501,1726384267171,-2040.62,0.00013708,2]
[338202502,1726384267182,-2576.49,0.00013708,2]
[338202503,1726384267192,-1924.95,0.00013708,2]
[338202504,1726384267201,-7593.37,0.00013708,2]
[338202505,1726384267212,-3777.3,0.00013708,2]
[338202506,1726384267222,-2400.38,0.00013708,2]
[338202507,1726384267231,-3502.82,0.00013708,2]
[338202508,1726384267241,-2274.51,0.00013708,2]
[338202509,1726384267250,-1431.78,0.00013708,2]
[338202510,1726384267260,-1554.09,0.00013708,2]
[338202511,1726384267270,-643.4,0.00013708,2]
[338202512,1726384267280,-726.28,0.00013708,2]
[338202513,1726384267290,-1455.09,0.00013708,2]
[338202514,1726384267300,-500.0,0.00013709,2]
[338202515,1726384267309,-200171.51460393,0.0001371,2]
[338202516,1726384267319,-326.600268,0.0001371,2]
[338202517,1726384267329,-326.600268,0.0001371,2]
[338202518,1726384267339,-74230.23944179,0.0001379,2]
[338202519,1726384267348,-262.189853,0.0001379,2]
[338202520,1726384267358,-230.124617,0.0001379,2]
[338202521,1726384267368,-500.0,0.00013799,2]
[338202522,1726384267377,-528.0,0.000138,2]
[338202523,1726384267387,-205028.336532,0.000138,2]
[338202524,1726384267397,-1001.0,0.000138,2]
[338202525,1726384267406,-200.0,0.00013806,2]
[338202526,1726384267415,-1617.81,0.00013808,2]
[338202527,1726384267425,-669.37,0.00013808,2]
[338202528,1726384267434,-35123.66,0.00013808,2]
[338202529,1726384267443,-2816.45,0.00013808,2]
[338202530,1726384267452,-1751.71,0.00013808,2]
[338202531,1726384267462,-749.92,0.00013808,2]
[338202532,1726384267471,-1762.77,0.00013808,2]
[338202533,1726384267481,-1211.63,0.00013808,2]
[338202534,1726384267490,-2067.45,0.00013808,2]
[338202535,1726384267499,-4082.75,0.00013808,2]
[338202536,1726384267509,-2802.8,0.00013808,2]
[338202537,1726384267518,-6431.45,0.00013808,2]
[338202538,1726384267527,-1193.29,0.00013809,2]
[338202539,1726384267536,-1622.18,0.00013809,2]
[338202540,1726384267545,-500.0,0.00013809,2]
[338202541,1726384267555,-1114.1,0.00013809,2]
[338202542,1726384267564,-2473.14,0.00013809,2]
[338202543,1726384267573,-500.0,0.00013809,2]
[338202544,1726384267582,-500.0,0.00013809,2]
[338202545,1726384267591,-763.18,0.00013809,2]
[338202546,1726384267600,-2641.77,0.00013809,2]
[338202547,1726384267609,-500.0,0.00013809,2]
[338202548,1726384267619,-500.0,0.00013809,2]
[338202549,1726384267629,-500.0,0.00013809,2]
[338202550,1726384267639,-1385.34,0.00013809,2]
[338202551,1726384267648,-2337.06,0.00013809,2]
[338202552,1726384267658,-1308.81,0.00013809,2]
[338202553,1726384267667,-500.0,0.00013809,2]
[338202554,1726384267676,-500.0,0.00013809,2]
[338202555,1726384267685,-3482.22,0.00013809,2]
[338202556,1726384267695,-500.0,0.00013809,2]
[338202557,1726384267704,-1780.69,0.00013809,2]
[338202558,1726384267713,-851.26,0.00013809,2]
[338202559,1726384267722,-500.0,0.00013809,2]
[338202560,1726384267731,-1609.35,0.00013809,2]
[338202561,1726384267741,-500.0,0.00013809,2]
[338202562,1726384267752,-762.47,0.00013809,2]
[338202563,1726384267761,-500.0,0.00013809,2]
[338202564,1726384267771,-1864.22,0.00013809,2]
[338202565,1726384267780,-500.0,0.00013809,2]
[338202566,1726384267789,-2095.35,0.00013809,2]
[338202567,1726384267798,-500.03653422,0.00013809,2]
[338202568,1726384267808,-4443.52,0.00013809,2]
[338202569,1726384267817,-500.0,0.00013809,2]
[338202570,1726384267826,-2011.54,0.00013809,2]
[338202571,1726384267836,-1302.52,0.00013809,2]
[338202572,1726384267845,-500.0,0.00013809,2]
[338202573,1726384267854,-500.0,0.00013809,2]
[338202574,1726384267863,-737.59,0.00013809,2]
[338202575,1726384267873,-500.0,0.00013809,2]
[338202576,1726384267882,-852.99,0.00013809,2]
[338202577,1726384267891,-2650.81,0.00013809,2]
[338202578,1726384267901,-1974.55,0.00013809,2]
[338202579,1726384267910,-500.0,0.00013809,2]
[338202580,1726384267919,-500.0,0.00013809,2]
[338202581,1726384267929,-500.0,0.00013809,2]
[338202582,1726384267938,-500.0,0.00013809,2]
[338202583,1726384267948,-601.69,0.00013809,2]
[338202584,1726384267957,-519.7,0.00013809,2]
[338202585,1726384267967,-1283.13,0.00013809,2]
[338202586,1726384267976,-744.0,0.00013809,2]
[338202587,1726384267985,-894.31,0.00013809,2]
[338202588,1726384268156,-1145.09,0.00013809,2]
[338202589,1726384268165,-500.0,0.00013809,2]
[338202590,1726384268175,-709.45,0.00013809,2]
[338202591,1726384268184,-500.0,0.00013809,2]
[338202592,1726384268194,-500.0,0.00013809,2]
[338202593,1726384268203,-500.0,0.00013809,2]
[338202594,1726384268212,-511.46,0.00013809,2]
[338202595,1726384268221,-836.9,0.00013809,2]
[338202596,1726384268231,-500.0,0.00013809,2]
[338202597,1726384268241,-2075.22,0.00013809,2]
[338202598,1726384268250,-902.45,0.00013809,2]
[338202599,1726384268260,-2120.69,0.00013809,2]
[338202600,1726384268269,-1755.42,0.00013809,2]
[338202601,1726384268278,-1023.95,0.00013809,2]
[338202602,1726384268288,-500.0,0.00013809,2]
[338202603,1726384268297,-1046.03,0.00013809,2]
[338202604,1726384268306,-500.0,0.00013809,2]
[338202605,1726384268315,-500.0,0.00013809,2]
[338202606,1726384268324,-500.0,0.00013809,2]
[338202607,1726384268334,-1560.2,0.00013809,2]
[338202608,1726384268343,-500.0,0.00013809,2]
[338202609,1726384268352,-500.0,0.00013809,2]
[338202610,1726384268361,-500.0,0.00013809,2]
[338202611,1726384268371,-500.0,0.00013809,2]
[338202612,1726384268380,-1566.56,0.00013809,2]
[338202613,1726384268390,-1747.39,0.00013809,2]
[338202614,1726384268399,-500.0,0.00013809,2]
[338202615,1726384268408,-500.0,0.00013809,2]
[338202616,1726384268418,-500.0,0.00013809,2]
[338202617,1726384268427,-500.0,0.00013809,2]
[338202618,1726384268436,-892.45,0.00013809,2]
[338202619,1726384268446,-500.0,0.00013809,2]
[338202620,1726384268455,-735.78,0.00013809,2]
[338202621,1726384268465,-571.19,0.00013809,2]
[338202622,1726384268474,-250.27354163,0.00013809,2]
[338202623,1726384268483,-500.0,0.00013809,2]
[338202624,1726384268492,-947.65,0.00013809,2]
[338202625,1726384268502,-500.0,0.00013809,2]
[338202626,1726384268511,-500.0,0.00013809,2]
[338202627,1726384268521,-500.0,0.00013809,2]
[338202628,1726384268531,-500.0,0.00013809,2]
[338202629,1726384268540,-500.0,0.00013809,2]
[338202630,1726384268549,-500.0,0.00013809,2]
[338202631,1726384268558,-500.0,0.00013809,2]
[338202632,1726384268568,-1036.25,0.00013809,2]
[338202633,1726384268577,-500.0,0.00013809,2]
[338202634,1726384268586,-500.0,0.00013809,2]
[338202635,1726384268596,-500.0,0.00013809,2]
[338202636,1726384268606,-2093.32,0.00013809,2]
[338202637,1726384268615,-500.0,0.00013809,2]
[338202638,1726384268624,-623.98,0.00013809,2]
[338202639,1726384268634,-500.0,0.00013809,2]
[338202640,1726384268643,-500.0,0.00013809,2]
[338202641,1726384268653,-500.0,0.00013809,2]
[338202642,1726384268663,-624.39,0.00013809,2]
[338202643,1726384268671,-500.0,0.00013809,2]
[338202644,1726384268681,-500.0,0.00013809,2]
[338202645,1726384268691,-504.45,0.00013809,2]
[338202646,1726384268701,-500.0,0.00013809,2]
[338202647,1726384268711,-500.0,0.00013809,2]
[338202648,1726384268720,-500.0,0.00013809,2]
[338202649,1726384268730,-500.0,0.00013809,2]
[338202650,1726384268740,-500.0,0.00013809,2]
[338202651,1726384268750,-500.0,0.00013809,2]
[338202652,1726384268765,-500.0,0.00013809,2]
[338202653,1726384268775,-500.0,0.00013809,2]
[338202654,1726384268784,-548.55524919,0.00013809,2]
[338202655,1726384268794,-500.0,0.00013809,2]
[338202656,1726384268803,-1818.97,0.00013809,2]
[338202657,1726384268813,-2300.0,0.00013809,2]
[338202658,1726384268822,-551.65,0.00013809,2]
[338202659,1726384268831,-623.94,0.00013809,2]
[338202660,1726384268841,-500.0,0.00013809,2]
[338202661,1726384268850,-500.0,0.00013809,2]
[338202662,1726384268859,-1981.5,0.00013809,2]
[338202663,1726384268869,-500.0,0.00013809,2]
[338202664,1726384268879,-850.82,0.00013809,2]
[338202665,1726384268888,-1273.76,0.00013809,2]
[338202666,1726384268897,-500.0,0.00013809,2]
[338202667,1726384268908,-550.95,0.00013809,2]
[338202668,1726384268918,-777.07,0.00013809,2]
[338202669,1726384268927,-1159.13,0.00013809,2]
[338202670,1726384268937,-1474.94,0.00013809,2]
[338202671,1726384268946,-545.13130713,0.00013809,2]
[338202672,1726384268956,-500.0,0.00013809,2]
[338202673,1726384268965,-559.73,0.00013809,2]
[338202674,1726384268975,-719.19,0.00013809,2]
[338202675,1726384268984,-2610.8,0.00013809,2]
[338202676,1726384268993,-500.0,0.00013809,2]
[338202677,1726384269003,-738.9,0.00013809,2]
[338202678,1726384269012,-1184.26,0.00013809,2]
[338202679,1726384269021,-1079.19,0.00013809,2]
[338202680,1726384269030,-1624.73,0.00013809,2]
[338202681,1726384269040,-500.0,0.00013809,2]
[338202682,1726384269049,-500.0,0.00013809,2]
[338202683,1726384269058,-500.0,0.00013809,2]
[338202684,1726384269067,-500.0,0.00013809,2]
[338202685,1726384269076,-686.14,0.00013809,2]
[338202686,1726384269086,-1209.79,0.00013809,2]
[338202687,1726384269096,-500.0,0.00013809,2]
[338202688,1726384269105,-576.58,0.00013809,2]
[338202689,1726384269114,-1332.15,0.00013809,2]
[338202690,1726384269123,-1855.53,0.00013809,2]
[338202691,1726384269132,-536.83,0.00013809,2]
[338202692,1726384269146,-1491.5,0.00013809,2]
[338202693,1726384269156,-500.0,0.00013809,2]
[338202694,1726384269165,-500.0,0.00013809,2]
[338202695,1726384269174,-500.0,0.00013809,2]
[338202696,1726384269185,-1071.58,0.00013809,2]
[338202697,1726384269194,-500.0,0.00013809,2]
[338202698,1726384269203,-1507.93,0.00013809,2]
[338202699,1726384269213,-680.2,0.00013809,2]
[338202700,1726384269225,-1870.89,0.00013809,2]
[338202701,1726384269249,-995.68,0.00013809,2]
[338202702,1726384269264,-500.0,0.00013809,2]
[338202703,1726384269281,-500.0,0.00013809,2]
[338202704,1726384269301,-2007.69,0.00013809,2]
[338202705,1726384269320,-500.0,0.00013809,2]
[338202706,1726384269338,-1025.69,0.00013809,2]
[338202707,1726384269354,-2714.33,0.00013809,2]
[338202708,1726384269371,-1496.95,0.00013809,2]
[338202709,1726384269390,-500.0,0.00013809,2]
[338202710,1726384269411,-686.14,0.00013809,2]
[338202711,1726384269425,-1122.46,0.00013809,2]
[338202712,1726384269442,-1166.0,0.00013809,2]
[338202713,1726384269458,-500.0,0.00013809,2]
[338202714,1726384269475,-500.0,0.00013809,2]
[338202715,1726384269487,-2008.29,0.00013809,2]
[338202716,1726384269504,-879.6,0.00013809,2]
[338202717,1726384269521,-500.0,0.00013809,2]
[338202718,1726384269536,-6593.78,0.00013809,2]
[338202719,1726384269551,-3363.1,0.00013809,2]
[338202720,1726384269567,-500.0,0.00013809,2]
[338202721,1726384269582,-1398.28,0.00013809,2]
[338202722,1726384269597,-3795.44,0.00013809,2]
[338202723,1726384269612,-3563.34,0.00013809,2]
[338202724,1726384269627,-618.44,0.00013809,2]
[338202725,1726384269642,-1399.32,0.00013809,2]
[338202726,1726384269657,-634.33,0.00013809,2]
[338202727,1726384269674,-587.57,0.00013809,2]
[338202728,1726384269688,-2372.05,0.00013809,2]
[338202729,1726384269703,-5675.17,0.00013809,2]
[338202730,1726384269718,-500.0,0.00013809,2]
[338202731,1726384269735,-564.46658064,0.00013809,2]
[338202732,1726384269750,-5967.21,0.00013809,2]
[338202733,1726384269766,-9607.36,0.00013809,2]
[338202734,1726384269781,-500.0,0.00013809,2]
[338202735,1726384269796,-911.34,0.00013809,2]
[338202736,1726384269811,-500.0,0.00013809,2]
[338202737,1726384269826,-2350.58,0.00013809,2]
[338202738,1726384269840,-1309.57,0.00013809,2]
[338202739,1726384269856,-2999.57,0.00013809,2]
[338202740,1726384269872,-2196.79,0.00013809,2]
[338202741,1726384269888,-1440.36,0.00013809,2]
[338202742,1726384269902,-1752.98,0.00013809,2]
[338202743,1726384269919,-500.0,0.00013809,2]
[338202744,1726384269934,-4652.42,0.00013809,2]
[338202745,1726384269950,-500.0,0.00013809,2]
[338202746,1726384269966,-500.0,0.00013809,2]
[338202747,1726384269982,-722.76,0.00013809,2]
[338202748,1726384270002,-880.15,0.00013809,2]
[338202749,1726384270017,-500.0,0.00013809,2]
[338202750,1726384270033,-4769.21,0.00013809,2]
[338202751,1726384270048,-5547.07,0.00013809,2]
[338202752,1726384270064,-500.0,0.00013809,2]
[338202753,1726384270080,-6423.75,0.00013809,2]
[338202754,1726384270096,-1882.2,0.00013809,2]
[338202755,1726384270111,-500.0,0.00013809,2]
[338202756,1726384270127,-500.0,0.00013809,2]
[338202757,1726384270145,-2009.09,0.00013809,2]
[338202758,1726384270160,-500.0,0.00013809,2]
[338202759,1726384270175,-500.0,0.00013809,2]
[338202760,1726384270192,-1771.78,0.00013809,2]
[338202761,1726384270208,-1366.88,0.00013809,2]
[338202762,1726384270224,-500.0,0.00013809,2]
[338202763,1726384270240,-500.0,0.00013809,2]
[338202764,1726384270257,-1268.81,0.00013809,2]
[338202765,1726384270273,-500.0,0.00013809,2]
[338202766,1726384270289,-500.0,0.00013809,2]
[338202767,1726384270305,-2352.5,0.00013809,2]
[338202768,1726384270321,-1652.18,0.00013809,2]
[338202769,1726384270337,-1213.6,0.00013809,2]
[338202770,1726384270353,-500.0,0.00013809,2]
[338202771,1726384270369,-4744.92,0.00013809,2]
[338202772,1726384270385,-500.0,0.00013809,2]
[338202773,1726384270400,-858.79,0.00013809,2]
[338202774,1726384270417,-1763.84,0.00013809,2]
[338202775,1726384270435,-500.0,0.00013809,2]
[338202776,1726384270452,-500.0,0.00013809,2]
[338202777,1726384270469,-561.52,0.00013809,2]
[338202778,1726384270485,-532.88,0.00013809,2]
[338202779,1726384270502,-500.0,0.00013809,2]
[338202780,1726384270518,-1980.91,0.00013809,2]
[338202781,1726384270534,-500.0,0.00013809,2]
[338202782,1726384270551,-645.72,0.00013809,2]
[338202783,1726384270566,-2185.22,0.00013809,2]
[338202784,1726384270582,-2303.92,0.00013809,2]
[338202785,1726384270599,-905.03,0.00013809,2]
[338202786,1726384270616,-559.17,0.00013809,2]
[338202787,1726384270631,-500.0,0.00013809,2]
[338202788,1726384270650,-1327.08,0.00013809,2]
[338202789,1726384270666,-356.42005091,0.00013809,2]
[338202790,1726384270681,-1127.6,0.00013809,2]
[338202791,1726384270697,-1484.26,0.00013809,2]
[338202792,1726384270712,-500.0,0.00013809,2]
[338202793,1726384270726,-500.0,0.00013809,2]
[338202794,1726384270741,-500.0,0.00013809,2]
[338202795,1726384270757,-500.0,0.00013809,2]
[338202796,1726384270772,-1203.43,0.00013809,2]
[338202797,1726384270787,-1047.41,0.00013809,2]
[338202798,1726384270804,-1417.01,0.00013809,2]
[338202799,1726384270820,-1171.91,0.00013809,2]
[338202800,1726384270836,-2562.29,0.00013809,2]
[338202801,1726384270852,-500.0,0.00013809,2]
[338202802,1726384270873,-726.95,0.00013809,2]
[338202803,1726384270890,-751.56,0.00013809,2]
[338202804,1726384270906,-3668.07,0.00013809,2]
[338202805,1726384270922,-428.69263415,0.00013809,2]
[338202806,1726384270940,-2452.76,0.00013809,2]
[338202807,1726384270956,-500.0,0.00013809,2]
[338202808,1726384270972,-999.5,0.00013809,2]
[338202809,1726384270990,-838.89,0.00013809,2]
[338202810,1726384271006,-2605.37,0.00013809,2]
[338202811,1726384271263,-500.0,0.00013809,2]
[338202812,1726384271294,-566.66002279,0.00013809,2]
[338202813,1726384271306,-894.42,0.00013809,2]
[338202814,1726384271316,-2126.69,0.00013809,2]